bitfinex-derivatives/quotes_BNBF0:USTF0_20250101
["timestamp","ask_amount","ask_price","bid_price","bid_amount"]
[1735749121641,0.26114571,705.44,704.35,0.28394974]
[1735749121938,1.48139739,705.47,704.35,0.28394974]
[1735749122140,0.26113406,705.46,704.35,0.28394974]
[1735749122634,1.48139739,705.47,704.35,0.28394974]
[1735749123040,0.28350296,705.46,704.35,0.28394974]
[1735749139553,0.28350296,705.46,704.37,1.0602517]
[1735749140554,0.28350296,705.46,704.39,1.0602517]
[1735749141756,0.28350296,705.46,704.35,0.28394974]
[1735749141757,0.28350296,705.46,704.38,1.0602517]
[1735749143758,0.28350296,705.46,704.37,1.0602517]
[1735749144958,0.28350296,705.46,704.36,1.0602517]
[1735749146959,0.28350296,705.46,704.35,1.34420144]
[1735749148556,0.28350296,705.46,704.58,1.06207961]
[1735749149857,0.28350296,705.46,704.49,1.06207961]
[1735749151056,0.28350296,705.46,704.47,1.06207961]
[1735749152057,0.28350296,705.46,704.35,0.28394974]
[1735749152058,0.28350296,705.46,704.42,1.06207961]
[1735749153063,0.28350296,705.46,704.44,1.06207961]
[1735749154164,0.28350296,705.46,704.43,1.06207961]
[1735749155066,0.28350296,705.46,704.44,1.06207961]
[1735749156470,0.28350296,705.46,704.5,1.06207961]
[1735749157668,1.48104013,705.59,704.5,1.06207961]
[1735749157963,1.48104013,705.59,704.55,1.06207961]
[1735749160167,1.48104013,705.59,704.69,1.06207961]
[1735749161270,1.48104013,705.59,704.68,1.06207961]
[1735749161471,1.05621302,705.82,704.68,1.06207961]
[1735749161869,1.48073555,705.7,704.68,1.06207961]
[1735749162172,1.4806148,705.81,704.68,1.06207961]
[1735749162874,1.4806148,705.81,704.61,1.06207961]
[1735749164272,1.4806148,705.81,704.62,1.06207961]
[1735749165575,1.4806148,705.81,704.64,1.06207961]
[1735749166469,1.4806148,705.81,704.68,1.06207961]
[1735749167978,1.4806148,705.81,704.67,1.06207961]
[1735749169477,1.4806148,705.81,704.65,1.06207961]
[1735749170477,0.26102701,705.8,704.65,1.06207961]
[1735749170776,0.26102701,705.8,704.63,1.06207961]
[1735749171974,0.26102701,705.8,704.62,1.06207961]
[1735749172168,0.2610394,705.79,704.62,1.06207961]
[1735749173073,1.4806148,705.81,704.62,1.06207961]
[1735749173074,0.2610394,705.78,704.62,1.06207961]
[1735749173477,0.2610394,705.8,704.62,1.06207961]
[1735749173678,0.2610394,705.79,704.62,1.06207961]
[1735749173880,1.4806148,705.81,704.66,1.06207961]
[1735749174674,1.4806148,705.81,704.5,1.06207961]
[1735749177387,1.4806148,705.81,704.52,1.06207961]
[1735749178779,1.4806148,705.81,704.5,1.06207961]
[1735749179887,1.4806148,705.81,704.51,0.28388525]
[1735749181185,1.4806148,705.81,704.58,1.06207961]
[1735749182087,0.26102059,705.8,704.81,1.06207961]
[1735749182286,0.52201105,705.8,704.81,1.06207961]
[1735749182484,0.26102059,705.79,704.81,1.06207961]
[1735749183085,0.26102059,705.79,704.67,1.06207961]
[1735749184286,0.26102059,705.79,704.68,1.06207961]
[1735749184682,0.26102531,705.78,704.68,1.06207961]
[1735749185287,0.26102531,705.79,704.68,1.06207961]
[1735749185489,0.26102531,705.78,704.66,1.06207961]
[1735749186085,0.26102531,705.8,704.66,1.06207961]
[1735749186490,0.26102531,705.77,704.66,1.06207961]
[1735749186792,0.26102531,705.77,704.64,1.06207961]
[1735749186985,0.26102531,705.76,704.64,1.06207961]
[1735749187389,0.26102531,705.8,704.66,1.06207961]
[1735749187584,1.4806148,705.81,704.66,1.06207961]
[1735749187585,0.26103289,705.75,704.66,1.06207961]
[1735749187988,0.26103289,705.79,704.66,1.06207961]
[1735749188192,0.26103289,705.74,704.66,1.06207961]
[1735749188592,0.26103289,705.73,704.66,1.06207961]
[1735749188793,1.74173693,705.73,704.67,1.06207961]
[1735749188993,1.48070404,705.73,704.67,1.06207961]
[1735749189186,0.26103289,705.72,704.67,1.06207961]
[1735749189693,0.5444314,705.72,704.67,1.06207961]
[1735749189886,0.26103289,705.71,704.67,1.06207961]
[1735749191393,0.26103289,705.71,704.61,1.06207961]
[1735749192093,1.31724591,705.71,704.54,1.06207961]
[1735749193092,0.26103289,705.7,704.54,1.06207961]
[1735749193297,0.28339851,705.72,704.56,1.06207961]
[1735749193497,0.26107836,705.71,704.56,1.06207961]
[1735749194296,0.28340654,705.7,704.56,1.06207961]
[1735749194499,0.28340654,705.7,704.53,1.06207961]
[1735749194699,0.26107836,705.69,704.53,1.06207961]
[1735749195498,0.26107836,705.69,704.51,0.28388525]
[1735749200707,0.26110037,705.68,704.51,0.28388525]
[1735749201405,0.26110037,705.69,704.51,0.28388525]
[1735749201799,0.28340654,705.7,704.51,0.28388525]
[1735749201800,0.26110037,705.67,704.51,0.28388525]
[1735749202206,0.26110037,705.68,704.51,0.28388525]
[1735749202501,0.26110037,705.69,704.38,1.06207961]
[1735749202706,0.26110037,705.68,704.38,1.06207961]
[1735749203207,0.26110037,705.69,704.38,1.06207961]
[1735749203508,0.26110568,705.68,704.38,1.06207961]
[1735749203709,0.26110568,705.69,704.38,1.06207961]
[1735749203909,0.26110568,705.68,704.38,1.06207961]
[1735749204109,0.28341859,705.67,704.36,1.06207961]
[1735749204303,0.54452427,705.67,704.36,1.06207961]
[1735749204502,0.26110568,705.66,704.36,1.06207961]
[1735749205108,1.48120823,705.65,704.36,1.06207961]
[1735749205410,0.26110568,705.64,704.34,1.06207961]
[1735749206109,1.48120823,705.65,704.34,1.06207961]
[1735749206313,0.26110386,705.63,704.34,1.06207961]
[1735749206609,0.26110386,705.62,704.42,1.06207961]
[1735749206808,0.26110386,705.61,704.42,1.06207961]
[1735749207008,0.26110386,705.6,704.42,1.06207961]
[1735749207210,0.26110386,705.64,704.42,1.06207961]
[1735749207405,0.26110386,705.59,704.42,1.06207961]
[1735749207610,0.26110386,705.58,704.41,1.06207961]
[1735749207807,0.26110386,705.57,704.41,1.06207961]
[1735749208007,0.26110386,705.56,704.41,1.06207961]
[1735749208207,0.26110386,705.55,704.41,1.06207961]
[1735749208408,0.26110386,705.64,704.41,1.06207961]
[1735749208610,0.26110386,705.63,704.41,1.06207961]
[1735749208810,0.26110543,705.62,704.41,1.06207961]
[1735749209005,0.26110543,705.64,704.41,1.06207961]
[1735749209211,0.26110543,705.63,704.41,1.06207961]
[1735749209412,0.26110543,705.62,704.41,1.06207961]
[1735749209712,0.26110543,705.64,704.41,1.06207961]
[1735749209913,0.26110543,705.64,704.2,1.0602517]
[1735749209914,0.26110543,705.64,704.42,1.06207961]
[1735749210106,0.26110543,705.63,704.42,1.06207961]
[1735749210409,1.48120823,705.65,704.42,1.06207961]
[1735749211313,1.48120823,705.65,704.47,1.06207961]
[1735749212314,1.48120823,705.65,704.54,1.06207961]
[1735749213807,1.48120823,705.65,704.55,1.06207961]
[1735749216113,1.48120823,705.65,704.58,1.06207961]
[1735749217519,1.48120823,705.65,704.59,1.06207961]
[1735749219322,1.48120823,705.65,704.65,1.06207961]
[1735749220212,1.48120823,705.65,702.43,3.22724145]
[1735749220213,1.48120823,705.65,704.7,1.06207961]
[1735749221220,1.48120823,705.65,704.74,1.06207961]
[1735749223425,0.28341859,705.67,704.74,1.06207961]
[1735749223922,1.48056755,705.8,704.72,1.06207961]
[1735749225026,1.48056755,705.8,704.77,1.06207961]
[1735749226025,1.48056755,705.8,704.71,1.06207961]
[1735749227125,1.48056755,705.8,704.69,1.06207961]
[1735749228227,1.48056755,705.8,704.66,1.06207961]
[1735749229125,1.48056755,705.8,704.05,2.16468056]
[1735749229126,1.48056755,705.8,704.64,1.06207961]
[1735749230026,1.48056755,705.8,704.02,2.16468056]
[1735749230027,1.48056755,705.8,704.46,1.06207961]
[1735749231029,1.48056755,705.8,704.47,1.06207961]
[1735749233433,0.26102313,705.79,704.47,1.06207961]
[1735749233731,1.48056755,705.8,704.47,1.06207961]
[1735749234335,1.48056755,705.8,704.52,1.06207961]
[1735749235334,1.48056755,705.8,704.5,1.06207961]
[1735749235733,0.26104576,705.79,704.5,1.06207961]
[1735749236341,0.26104576,705.79,704.47,1.06207961]
[1735749237435,0.28337442,705.78,704.47,1.06207961]
[1735749237630,0.28337442,705.78,704.48,1.06207961]
[1735749237836,0.26105984,705.77,704.48,1.06207961]
[1735749238736,0.26105984,705.77,704.44,1.06207961]
[1735749240036,0.26105984,705.77,704.45,1.06207961]
[1735749240937,0.26105984,705.77,704.46,1.06207961]
[1735749241537,0.28337442,705.78,704.46,1.06207961]
[1735749241731,0.26107017,705.77,704.46,1.06207961]
[1735749241936,0.28337442,705.78,704.46,1.06207961]
[1735749242137,0.26107107,705.77,704.46,1.06207961]
[1735749242634,0.28337442,705.78,704.46,1.06207961]
[1735749242837,0.26106958,705.77,704.46,1.06207961]
[1735749243640,0.26106958,705.77,704.55,1.06207961]
[1735749245233,0.26106958,705.77,704.57,1.06207961]
[1735749246335,0.26106958,705.77,704.55,1.06207961]
[1735749247839,1.33958744,705.78,704.47,1.06207961]
[1735749247840,0.28337442,705.78,704.47,1.06207961]
[1735749248840,0.28337442,705.78,704.49,1.06207961]
[1735749249733,0.28337442,705.78,704.57,1.06207961]
[1735749249940,0.26103218,705.77,704.57,1.06207961]
[1735749250643,0.26103218,705.77,704.66,1.06207961]
[1735749251742,0.26103218,705.77,704.63,1.06207961]
[1735749252638,0.26103268,705.76,704.63,1.06207961]
[1735749252837,0.26103268,705.75,704.64,1.06207961]
[1735749253142,0.28337442,705.78,704.64,1.06207961]
[1735749253441,0.26101743,705.77,704.64,1.06207961]
[1735749253843,0.26101743,705.77,704.75,1.06207961]
[1735749255243,0.26101149,705.76,704.75,1.06207961]
[1735749255542,0.26101149,705.75,704.75,1.06207961]
[1735749255738,0.26101149,705.75,704.22,2.16468056]
[1735749255739,0.26101149,705.74,704.76,1.06207961]
[1735749255941,0.26101149,705.77,704.76,1.06207961]
[1735749256142,0.26101149,705.76,704.76,1.06207961]
[1735749256335,0.28337442,705.78,704.76,1.06207961]
[1735749256336,0.26101149,705.75,704.76,1.06207961]
[1735749256539,0.26101149,705.74,704.76,1.06207961]
[1735749256737,0.26101149,705.73,704.76,1.06207961]
[1735749256938,0.26101149,705.72,704.75,1.06207961]
[1735749257237,0.28337442,705.78,704.75,1.06207961]
[1735749257442,1.48075655,705.71,704.75,1.06207961]
[1735749257642,0.26104595,705.7,704.75,1.06207961]
[1735749257845,0.26104595,705.7,704.59,1.06207961]
[1735749259343,0.26104595,705.7,704.58,1.06207961]
[1735749259743,1.48075655,705.71,704.58,1.06207961]
[1735749260443,0.26104694,705.7,704.64,1.06207961]
[1735749261041,1.48075655,705.71,704.64,1.06207961]
[1735749261843,1.48075655,705.71,704.63,1.06207961]
[1735749262644,1.48075655,705.71,704.67,1.06207961]
[1735749263645,1.48075655,705.71,704.7,1.06207961]
[1735749264945,1.48075655,705.71,704.72,1.06207961]
[1735749266347,0.28337442,705.78,704.21,4.60016648]
[1735749266348,0.28337442,705.78,704.78,1.06207961]
[1735749266547,1.48063054,705.72,704.78,1.06207961]
[1735749267446,1.48063054,705.72,704.86,1.06207961]
[1735749267745,0.28337442,705.78,704.86,1.06207961]
[1735749267947,1.4805518,705.72,704.86,1.06207961]
[1735749268146,0.28337442,705.78,704.86,1.06207961]
[1735749268551,0.28337442,705.78,704.81,1.06207961]
[1735749269749,0.28337442,705.78,704.58,1.0602517]
[1735749269750,0.28337442,705.78,704.79,1.06207961]
[1735749270843,0.28337442,705.78,704.78,1.06207961]
[1735749272053,0.28337442,705.78,704.73,1.06207961]
[1735749272954,0.28337442,705.78,704.17,1.27230204]
[1735749272955,0.28337442,705.78,704.7,1.06207961]
[1735749274165,0.28337442,705.78,704.72,1.06207961]
[1735749278464,0.28337442,705.78,704.73,1.06207961]
[1735749279458,0.28337442,705.78,704.5,1.0602517]
[1735749279459,0.28337442,705.78,704.72,1.06207961]
[1735749281369,0.28337442,705.78,704.73,1.06207961]
[1735749282768,0.28337442,705.78,704.76,1.06207961]
[1735749284667,0.26103509,705.77,704.76,1.06207961]
[1735749284869,0.26103509,705.77,704.78,1.06207961]
[1735749285068,0.28337442,705.78,704.78,1.06207961]
[1735749286070,0.28337442,705.78,704.55,1.06207961]
[1735749287170,0.28337442,705.78,704.51,1.06207961]
[1735749288265,0.28337442,705.78,704.5,1.06207961]
[1735749289364,0.28337442,705.78,704.54,1.06207961]
[1735749290570,0.28337442,705.78,704.53,1.06207961]
[1735749291971,0.26102836,705.77,704.53,1.06207961]
[1735749292872,0.26102836,705.77,704.75,1.06207961]
[1735749293870,0.26102836,705.77,704.74,1.06207961]
[1735749294664,0.28337442,705.78,704.74,1.06207961]
[1735749295368,0.28337442,705.78,704.16,2.16468056]
[1735749295369,0.28337442,705.78,704.76,1.06207961]
[1735749296372,0.28337442,705.78,704.18,2.16468056]
[1735749296373,0.28337442,705.78,704.41,1.06207961]
[1735749298269,0.28337442,705.78,704.41,1.34600516]
[1735749299872,0.28337442,705.78,704.56,1.06207961]
[1735749300477,0.26102643,705.77,704.56,1.06207961]
[1735749301273,0.28337442,705.78,704.76,1.06207961]
[1735749302473,0.28337442,705.78,704.82,1.06207961]
[1735749303677,0.28337442,705.78,704.88,1.06207961]
[1735749304877,0.28337442,705.78,704.66,1.0602517]
[1735749304878,0.28337442,705.78,704.98,1.06207961]
[1735749305974,0.28337442,705.78,704.9,1.06207961]
[1735749306976,0.28337442,705.78,704.84,1.06207961]
[1735749308978,0.28337442,705.78,704.82,1.06207961]
[1735749310284,0.28337442,705.78,704.8,1.06207961]
[1735749311782,0.28337442,705.78,704.82,1.06207961]
[1735749313082,0.28337442,705.78,704.8,1.06207961]
[1735749314278,0.28337442,705.78,704.82,1.06207961]
[1735749315077,1.48049407,705.91,704.82,1.06207961]
[1735749315781,1.48049407,705.91,704.86,1.06207961]
[1735749316783,1.05621302,706.54,704.69,1.06207961]
[1735749316978,1.48025266,705.91,704.69,1.06207961]
[1735749317182,1.05621302,706.54,704.69,1.06207961]
[1735749317377,1.48034187,705.93,704.69,1.06207961]
[1735749317777,1.05621302,706.54,704.69,1.06207961]
[1735749317982,0.28307761,706.52,704.66,1.06207961]
[1735749318183,0.26089991,706.51,704.66,1.06207961]
[1735749318885,1.48003757,706.5,704.66,1.06207961]
[1735749319083,0.26089991,706.49,704.66,1.06207961]
[1735749319284,0.26089991,706.49,703.75,2.16468056]
[1735749319285,0.26089991,706.49,704.6,1.06207961]
[1735749319685,0.26091042,706.48,704.6,1.06207961]
[1735749319886,0.26091042,706.47,704.6,1.06207961]
[1735749320087,0.26091042,706.46,704.61,1.06207961]
[1735749320392,0.26091009,706.45,704.61,1.06207961]
[1735749320584,0.26091009,706.44,704.61,1.06207961]
[1735749320786,0.26091009,706.43,704.61,1.06207961]
[1735749320987,0.26091009,706.42,704.61,1.06207961]
[1735749321286,0.26091009,706.41,704.6,1.06207961]
[1735749321488,0.26091009,706.49,704.6,1.06207961]
[1735749321689,1.48003757,706.5,704.6,1.06207961]
[1735749321690,0.26091009,706.48,704.6,1.06207961]
[1735749321885,0.26091009,706.47,704.6,1.06207961]
[1735749322087,0.26091009,706.46,704.6,1.06207961]
[1735749322385,0.26090745,706.45,704.71,1.06207961]
[1735749322589,0.26090745,706.44,704.71,1.06207961]
[1735749322785,0.26090574,706.43,704.71,1.06207961]
[1735749322988,0.26090574,706.42,704.71,1.06207961]
[1735749323190,0.26090574,706.41,704.71,1.06207961]
[1735749323490,0.26090574,706.4,704.73,1.06207961]
[1735749323689,0.26090574,706.39,704.73,1.06207961]
[1735749323889,0.26090574,706.38,704.73,1.06207961]
[1735749324087,0.26090574,706.37,704.73,1.06207961]
[1735749324293,0.26090574,706.36,704.73,1.06207961]
[1735749324493,0.26090574,706.35,704.73,1.06207961]
[1735749324694,0.26090574,706.34,704.73,1.06207961]
[1735749324893,1.48003757,706.5,704.61,0.28384496]
[1735749324894,0.26089757,706.33,704.76,1.06207961]
[1735749325093,0.26089757,706.32,704.76,1.06207961]
[1735749325293,0.26089757,706.31,704.76,1.06207961]
[1735749325488,0.26089757,706.3,704.76,1.06207961]
[1735749325692,0.26089757,706.29,704.8,1.06207961]
[1735749325890,0.26089757,706.28,704.8,1.06207961]
[1735749326094,0.26089757,706.27,704.8,1.06207961]
[1735749326290,0.26089757,706.26,704.8,1.06207961]
[1735749326493,0.26089757,706.25,704.8,1.06207961]
[1735749326694,0.26089757,706.24,704.8,1.06207961]
[1735749326895,0.26089757,706.23,704.8,1.06207961]
[1735749327094,2.53625059,706.5,704.81,1.06207961]
[1735749327095,0.26089757,706.22,704.81,1.06207961]
[1735749327396,0.26089757,706.21,704.81,1.06207961]
[1735749327692,0.26089757,706.2,704.81,1.06207961]
[1735749327892,0.26089757,706.19,704.81,1.06207961]
[1735749328088,0.26089757,706.19,704.61,0.28384496]
[1735749328089,0.26089757,706.18,704.76,1.06207961]
[1735749328291,0.26091217,706.43,704.76,1.06207961]
[1735749328489,0.26091217,706.42,704.76,1.06207961]
[1735749328690,0.26091217,706.41,704.76,1.06207961]
[1735749328889,0.26091217,706.4,704.76,1.06207961]
[1735749329094,0.26091217,706.39,704.76,1.06207961]
[1735749329292,0.26091217,706.38,704.77,1.06207961]
[1735749329896,0.26091217,706.37,704.77,1.06207961]
[1735749330094,0.26094954,706.36,704.77,1.06207961]
[1735749330295,0.26094954,706.35,704.77,1.06207961]
[1735749330499,0.26094954,706.34,704.77,1.06207961]
[1735749330699,0.26094954,706.33,704.77,1.06207961]
[1735749330902,1.05621302,706.27,704.78,1.06207961]
[1735749331201,0.26094954,706.26,704.78,1.06207961]
[1735749332101,1.05621302,706.15,704.74,1.06207961]
[1735749332301,0.26094954,706.14,704.74,1.06207961]
[1735749333203,0.26094954,706.14,704.61,0.28384496]
[1735749333408,0.26094954,706.13,704.61,0.28384496]
[1735749333603,0.26094954,706.12,704.61,0.28384496]
[1735749333907,0.26094954,706.11,704.61,0.28384496]
[1735749334205,0.26094954,706.1,704.61,0.28384496]
[1735749334405,0.26094954,706.22,704.61,0.28384496]
[1735749334602,0.26094954,706.21,704.61,0.28384496]
[1735749334805,0.26094954,706.2,704.61,0.28384496]
[1735749335005,1.05621302,706.23,704.61,0.28384496]
[1735749335207,1.05621302,706.2,704.61,0.28384496]
[1735749335406,0.26099568,706.19,704.61,0.28384496]
[1735749335810,0.26099632,706.18,704.61,0.28384496]
[1735749336009,0.26099632,706.17,704.61,0.28384496]
[1735749336212,0.26099632,706.16,704.61,0.28384496]
[1735749336508,0.26099632,706.15,704.61,0.28384496]
[1735749336709,0.26099632,706.14,704.61,0.28384496]
[1735749336911,0.26099632,706.13,704.61,0.28384496]
[1735749337109,0.26099632,706.12,704.61,0.28384496]
[1735749337314,0.26099632,706.11,704.61,0.28384496]
[1735749337517,0.26099632,706.1,704.61,0.28384496]
[1735749337816,0.26099585,706.09,704.61,0.28384496]
[1735749338010,0.26099585,706.08,704.61,0.28384496]
[1735749338213,1.05621302,706.01,704.74,1.06207961]
[1735749338514,0.26099585,706.0,704.74,1.06207961]
[1735749338714,0.2609958,705.99,704.74,1.06207961]
[1735749338914,0.2609958,705.98,704.74,1.06207961]
[1735749339113,0.2609958,705.97,704.74,1.06207961]
[1735749339314,0.2609958,705.96,704.74,1.06207961]
[1735749339517,0.2609958,705.95,704.74,1.06207961]
[1735749339715,0.2609958,705.95,704.77,1.06207961]
[1735749340418,0.26100325,705.94,704.77,1.06207961]
[1735749340617,0.26100325,705.93,704.77,1.06207961]
[1735749340813,0.26100325,705.92,704.77,1.06207961]
[1735749341018,0.26100325,705.91,704.75,1.06207961]
[1735749341219,0.26100325,705.9,704.75,1.06207961]
[1735749341413,0.26100325,705.89,704.75,1.06207961]
[1735749341617,0.26100325,705.88,704.75,1.06207961]
[1735749341815,0.26100325,705.87,704.75,1.06207961]
[1735749342014,1.48048357,705.96,704.75,1.06207961]
[1735749342217,0.26097134,705.95,704.75,1.06207961]
[1735749342414,0.26097134,705.95,704.61,0.28384496]
[1735749342415,0.26097134,705.95,704.76,1.06207961]
[1735749342916,1.48048357,705.96,704.76,1.06207961]
[1735749343115,0.26097879,705.95,704.75,1.06207961]
[1735749344222,0.26097879,705.95,704.72,1.06207961]
[1735749344821,0.26098361,705.94,704.72,1.06207961]
[1735749345021,0.26098361,705.93,704.72,1.06207961]
[1735749345321,0.26100639,705.92,704.72,1.06207961]
[1735749345520,0.26100639,705.91,704.72,1.06207961]
[1735749345724,0.26100628,705.9,704.72,1.06207961]
[1735749346022,0.26100628,705.89,704.72,1.06207961]
[1735749346324,0.26100628,705.88,704.69,1.06207961]
[1735749346519,0.26100628,705.87,704.69,1.06207961]
[1735749346720,0.26100628,705.86,704.69,1.06207961]
[1735749346922,0.26100628,705.85,704.69,1.06207961]
[1735749347117,0.26100628,705.84,704.69,1.06207961]
[1735749347321,0.26100628,705.83,704.69,1.06207961]
[1735749347622,0.26100628,705.82,704.67,1.06207961]
[1735749347823,0.26100628,705.81,704.67,1.06207961]
[1735749348022,0.26100628,705.8,704.67,1.06207961]
[1735749348223,1.48048882,705.94,704.67,1.06207961]
[1735749348426,0.26100461,705.93,704.68,1.06207961]
[1735749349625,0.26100461,705.93,704.66,1.06207961]
[1735749350320,0.28331822,705.92,704.66,1.06207961]
[1735749350519,0.26100461,705.91,704.66,1.06207961]
[1735749350723,0.26100461,705.91,704.61,0.28384496]
[1735749350724,0.28331822,705.92,704.69,1.06207961]
[1735749350925,0.26100703,705.91,704.69,1.06207961]
[1735749351522,0.26100866,705.9,704.69,1.06207961]
[1735749351825,0.26100866,705.89,704.69,1.06207961]
[1735749352022,0.26100866,705.88,704.69,1.06207961]
[1735749352224,0.26100866,705.87,704.69,1.06207961]
[1735749352419,0.26100866,705.86,704.69,1.06207961]
[1735749352618,0.26100866,705.85,704.69,1.06207961]
[1735749352822,0.26100866,705.85,704.61,0.28384496]
[1735749352823,0.26100866,705.84,704.68,1.06207961]
[1735749353023,0.26100866,705.83,704.68,1.06207961]
[1735749353226,0.26100866,705.82,704.68,1.06207961]
[1735749353521,0.26099075,705.81,704.68,1.06207961]
[1735749353722,0.28331822,705.92,704.7,1.06207961]
[1735749353924,0.26098765,705.91,704.7,1.06207961]
[1735749354723,0.26098765,705.91,704.67,1.06207961]
[1735749355827,0.26098765,705.91,704.69,1.06207961]
[1735749357027,0.26098765,705.91,704.72,1.06207961]
[1735749358127,0.26098765,705.91,704.66,1.06207961]
[1735749360429,1.05621302,705.9,704.61,1.34592457]
[1735749360632,0.26098765,705.89,704.61,1.34592457]
[1735749360930,1.05621302,705.9,704.61,1.34592457]
[1735749361130,0.261035,705.89,704.61,1.34592457]
[1735749361529,1.31724802,705.89,704.65,1.06207961]
[1735749361730,0.261035,705.88,704.65,1.06207961]
[1735749362630,1.05621302,705.84,704.75,1.06207961]
[1735749362828,0.261035,705.83,704.75,1.06207961]
[1735749363229,0.26100463,705.82,704.75,1.06207961]
[1735749363426,0.26100463,705.81,704.75,1.06207961]
[1735749363629,1.48062005,705.82,704.75,1.06207961]
[1735749363833,1.48062005,705.82,704.83,1.06207961]
[1735749364431,1.48062005,705.82,704.62,0.72498065]
[1735749365933,0.26100117,705.81,704.87,1.0631248]
[1735749366533,1.48062005,705.82,704.87,1.0631248]
[1735749366933,0.26100335,705.81,704.87,1.0631248]
[1735749367133,1.48062005,705.82,704.86,1.0631248]
[1735749368238,0.26101175,705.81,704.83,1.0631248]
[1735749368434,0.26101203,705.8,704.83,1.0631248]
[1735749368630,0.26101203,705.79,704.83,1.0631248]
[1735749368841,0.26101815,705.78,704.83,1.0631248]
[1735749369037,0.26101815,705.77,704.83,1.0631248]
[1735749369236,0.26101815,705.76,704.83,1.0631248]
[1735749369539,0.26101815,705.75,704.85,1.0631248]
[1735749369739,1.05753196,705.81,704.85,1.0631248]
[1735749369940,0.26101473,705.8,704.85,1.0631248]
[1735749371436,0.26100698,705.79,704.85,1.0631248]
[1735749371740,1.48062005,705.82,704.87,1.0631248]
[1735749371935,0.2610073,705.81,704.87,1.0631248]
[1735749372743,0.2610073,705.81,704.86,1.0631248]
[1735749373845,0.2610073,705.81,704.62,0.72590557]
[1735749373846,0.2610073,705.81,704.83,1.0631248]
[1735749374046,0.26101894,705.8,704.83,1.0631248]
[1735749374241,2.53815201,705.82,704.83,1.0631248]
[1735749374443,0.2610175,705.81,704.83,1.0631248]
[1735749374747,0.2610175,705.81,704.61,0.28384496]
[1735749374748,1.05753196,705.81,704.82,1.0631248]
[1735749374945,0.26101673,705.8,704.82,1.0631248]
[1735749375545,1.05753196,705.81,704.82,1.0631248]
[1735749375940,1.48062005,705.82,704.61,1.34696976]
[1735749375941,1.48062005,705.82,704.79,1.0631248]
[1735749376944,0.26101182,705.81,704.83,1.0631248]
[1735749377159,1.48062005,705.82,704.83,1.0631248]
[1735749378346,1.48062005,705.82,704.61,1.34696976]
[1735749378347,1.48062005,705.82,704.77,1.0631248]
[1735749379648,1.48062005,705.82,704.82,1.0631248]
[1735749380650,1.48062005,705.82,704.77,1.0631248]
[1735749381552,1.48062005,705.82,704.74,1.0631248]
[1735749384654,1.48062005,705.82,704.76,1.0631248]
[1735749386158,1.48062005,705.82,704.8,1.0631248]
[1735749386955,1.48062005,705.82,704.61,0.28384496]
[1735749386956,1.48062005,705.82,704.86,1.0631248]
[1735749388361,1.48062005,705.82,704.85,1.0631248]
[1735749389358,1.48062005,705.82,704.89,1.0631248]
[1735749391963,1.48062005,705.82,704.87,1.0631248]
[1735749392863,1.48062005,705.82,704.9,1.0631248]
[1735749393057,0.26098939,705.81,704.9,1.0631248]
[1735749393262,1.48062005,705.82,704.9,1.0631248]
[1735749393466,0.2609936,705.81,704.9,1.0631248]
[1735749393669,0.2609936,705.81,704.93,1.0631248]
[1735749393869,1.48062005,705.82,704.93,1.0631248]
[1735749394167,0.26098936,705.81,704.93,1.0631248]
[1735749394469,1.48062005,705.82,704.93,1.0631248]
[1735749395169,1.48062005,705.82,704.62,0.72587169]
[1735749395170,0.26099039,705.81,704.92,1.0631248]
[1735749395368,1.48062005,705.82,704.92,1.0631248]
[1735749396069,1.48062005,705.82,704.93,1.0631248]
[1735749398164,1.48062005,705.82,704.91,1.0631248]
[1735749401172,1.48062005,705.82,704.92,1.0631248]
[1735749402270,1.48062005,705.82,704.91,1.0631248]
[1735749402473,1.05753196,705.86,704.91,1.0631248]
[1735749403570,0.28331822,705.92,704.78,1.0631248]
[1735749404672,0.28331822,705.92,704.77,1.0631248]
[1735749405672,1.05753196,705.91,704.75,1.0631248]
[1735749406772,1.05753196,705.91,704.76,1.0631248]
[1735749406967,1.4806043,705.9,704.76,1.0631248]
[1735749408275,1.4806043,705.9,704.78,1.0631248]
[1735749409279,0.28333026,705.89,704.78,1.0631248]
[1735749409678,0.28333026,705.89,704.79,1.0631248]
[1735749410774,0.26099219,705.88,704.82,1.0631248]
[1735749410973,0.26098933,705.87,704.82,1.0631248]
[1735749411178,0.28333026,705.89,704.82,1.0631248]
[1735749411375,0.26098912,705.88,704.82,1.0631248]
[1735749411880,0.26098912,705.88,704.92,1.0631248]
[1735749411881,1.05753196,705.87,704.92,1.0631248]
[1735749413081,1.34086222,705.89,704.93,1.0631248]
[1735749413279,0.26098872,705.88,704.93,1.0631248]
[1735749413480,1.34086222,705.89,704.93,1.0631248]
[1735749413882,0.26098616,705.88,704.93,1.0631248]
[1735749415579,1.34086222,705.89,704.93,1.0631248]
[1735749415779,1.05753196,705.88,704.96,1.0631248]
[1735749417185,0.28333026,705.89,704.98,1.0631248]
[1735749418486,0.28333026,705.89,704.99,1.0631248]
[1735749419388,0.28333026,705.89,704.98,1.0631248]
[1735749421787,0.28333026,705.89,705.01,1.0631248]
[1735749424090,0.28333026,705.89,704.98,1.0631248]
[1735749425186,0.28333026,705.89,704.94,1.0631248]
[1735749426289,0.28333026,705.89,704.93,1.0631248]